Cogmind - Beta 13 @@@ ROGUE MODE // 2024.04.16 @ 19:04:59 Player: TheBermanGrit Result: Destroyed by Y-45 Defender with Beam Rifle Performance ------------- Evolutions (2) 1000 Regions Visited (6) 1200 Robots Destroyed (25) 125 Value Destroyed (569) 569 Prototype IDs (23) 460 Alien Tech Used (0) 0 Bonus (300) 300 TOTAL SCORE: 3654 Bonus ------- Aligned with FarCom 300 Cogmind --------- Core Integrity 0/550 Matter 300/300 Energy 100/100 System Corruption 0% Temperature Cool (18) Movement Core (100) Ox1 Location -8/Materials Parts ------- > --- POWER (1) -------- (None) > --- PROPULSION (4) --- (None) > --- UTILITY (4) ------ Lightpack 2.0 > --- WEAPON (2) ------- (None) > --- INVENTORY (40) --- Medium Storage Unit Structural Scanner Improved Signal Interpreter Actuator Array ECM Suite Light Armor Plating System Shield Peak State ------------ > --- POWER ------------ Improved Ion Engine > --- PROPULSION ------- Armored Treads Armored Treads Armored Treads Armored Treads > --- UTILITY ---------- Lightpack 2.0 Improved Signal Interpreter > --- WEAPON ----------- Great Maul > --- INVENTORY -------- Light Ion Engine Light Treads Light Treads Light Treads Improved Treads Armored Treads Medium Storage Unit Structural Scanner Improved Signal Interpreter Actuator Array ECM Suite Great Maul [Rating: 52] Favorites ----------- Power Improved Ion Engine Engine Improved Ion Engine Power Core Light Nuclear Core Propulsion Light Treads Treads Light Treads Leg Aluminum Leg Utility Medium Storage Unit Device ECM Suite Storage Medium Storage Unit Processor Improved Signal Interpreter Weapon Great Maul Ballistic Gun Assault Rifle Launcher Improved Grenade Launcher Impact Weapon Great Maul Build | -11 -10 -9 -9 -9 -8 -8 ------- Run | Yrd Mat Mat Min Exi Min Mat Slots Evolved 4 | . . 2 . . . 2 Power . | . . . . . . . Propulsion 2 | . . 2 . . . . Utility 2 | . . . . . . 2 Weapon . | . . . . . . . Parts Attached 41 | 8 7 10 1 3 . 12 Power 4 | 1 1 . 1 . . 1 Engine 3 | 1 . . 1 . . 1 Core 1 | . 1 . . . . . Reactor . | . . . . . . . Propulsion 23 | 4 2 5 . 3 . 9 Treads 21 | 2 2 5 . 3 . 9 Leg 2 | 2 . . . . . . Wheel . | . . . . . . . Hover . | . . . . . . . Flight . | . . . . . . . Utility 8 | 1 4 2 . . . 1 Device 3 | . 2 1 . . . . Storage 4 | 1 2 . . . . 1 Processor 1 | . . 1 . . . . Hackware . | . . . . . . . Protection . | . . . . . . . Artifact . | . . . . . . . Weapon 6 | 2 . 3 . . . 1 Energy Gun . | . . . . . . . Energy Cannon . | . . . . . . . Ballistic Gun 3 | 2 . 1 . . . . Ballistic Cannon . | . . . . . . . Launcher 1 | . . 1 . . . . Special Weapon . | . . . . . . . Impact Weapon 2 | . . 1 . . . 1 Slashing Weapon . | . . . . . . . Piercing Weapon . | . . . . . . . Special Melee Weapon . | . . . . . . . Unidentified Prototypes . | . . . . . . . Parts Lost 11 | . . . 1 . . 10 Power 2 | . . . 1 . . 1 Propulsion 6 | . . . . . . 6 Utility 1 | . . . . . . 1 Weapon 2 | . . . . . . 2 Highest Loss Streak 8 | . . . 1 . . 8 To Critical Strikes . | . . . . . . . Average Slot Usage (%) 93 | . 99 99 94 100 100 63 Engine 8 | . 11 . 5 11 11 5 Core 2 | . 2 11 . . . . Treads 35 | . 13 44 44 44 44 30 Leg 3 | . 14 . . . . . Device 4 | . 13 7 . . . . Storage 11 | . 14 11 11 11 11 9 Processor 6 | . . 3 11 11 11 8 Ballistic Gun 8 | . 28 12 . . . . Launcher 5 | . . 4 11 11 11 1 Impact Weapon 7 | . . 4 11 11 11 7 Naked Turns . | . . . . . . . Heaviest Build 91 | 14 91 26 27 27 27 22 Greatest Support 83 | 40 40 83 83 83 83 83 Greatest Overweight (x) 2 | . 2 . . . . 2 Average Overweight (x) . | . . . . . . . Largest Inventory Capacity 40 | 8 25 10 10 10 10 40 Average Capacity 15 | 7 12 10 10 10 10 39 Most Carried 14 | 5 14 10 10 10 9 13 Average Carried 9 | 2 8 9 9 9 9 10 Final Capacity 40 | 8 10 10 10 10 10 40 Final Carried 10 | 3 10 10 10 9 9 7 Class Distribution -------------------- 67% | Mutant 16% | Hauler-Mutant 16% | Scavenger-Mutant Dominant Class ---------------- Mutant | -10/Materials Mutant | -9/Materials Mutant | -9/Mines Mutant | -9/Exiles Scavenger-Mutant | -8/Mines Hauler-Mutant | -8/Materials Resources | -11 -10 -9 -9 -9 -8 -8 ----------- Run | Yrd Mat Mat Min Exi Min Mat Matter Collected 804 | 222 155 212 . . . 215 Remotely . | . . . . . . . Salvage Created 618 | . 204 232 23 . . 159 Parts 49 | . 13 21 8 . . 7 Haulers Intercepted 1 | . 1 . . . . . Recyclers Shooed . | . . . . . . . Parts Field Recycled . | . . . . . . . Retrieved Matter . | . . . . . . . Parts Self-Destructed . | . . . . . . . Prevented . | . . . . . . . Kills | -11 -10 -9 -9 -9 -8 -8 ------- Run | Yrd Mat Mat Min Exi Min Mat Combat Hostiles Destroyed 23 | . 3 8 4 . . 8 Melee 2 | . . . . . . 2 Guns 8 | . 3 5 . . . . AOE 9 | . . 3 4 . . 2 Classes Destroyed 5 | . 3 2 . . . . Builder 1 | . 1 . . . . . Hauler 1 | . 1 . . . . . Swarmer 12 | . . 3 4 . . 5 Grunt 6 | . 3 3 . . . . Sentry 5 | . . 2 . . . 3 Best Kill Streak 4 | . 2 3 4 . . 3 Combat Bots Only 4 | . 2 3 4 . . 3 Max Kills in Single Turn 3 | . 1 2 3 . . 2 Gunslinging 1 | . . 1 . . . . Exploded 3 | . . 2 3 . . 2 Melee 1 | . . . . . . 1 Uniques/NPCs Destroyed . | . . . . . . . Combat | -11 -10 -9 -9 -9 -8 -8 -------- Run | Yrd Mat Mat Min Exi Min Mat Hostile Shots Fired 298 | . 22 52 9 . . 215 Missed 80 | . 8 13 2 . . 57 Damage Taken 3247 | . 172 409 59 . . 2607 Core 616 | . . 55 8 . . 553 Absorbed by Shields . | . . . . . . . Core Remaining (%) 94 | 100 100 . . . 84 . Volleys Fired 35 | . 19 12 2 . . 2 Largest 2 | . 2 2 1 . . 1 Hottest 43 | . 40 43 36 . . 36 Shots Fired 63 | . 38 21 2 . . 2 Gun 56 | . 38 18 . . . . Cannon . | . . . . . . . Launcher 7 | . . 3 2 . . 2 Special . | . . . . . . . Kinetic 56 | . 38 18 . . . . Thermal . | . . . . . . . Explosive 7 | . . 3 2 . . 2 Electromagnetic . | . . . . . . . Robot Hit Streak 8 | . 7 8 3 . . 4 Robot Miss Streak 4 | . 4 2 . . . . Penetration Max . | . . . . . . . Secondary Targets 2 | . 1 1 . . . . Max Gunslinging Chain 1 | . 1 1 . . . . Shots Hit Robots 61 | . 24 16 2 . . 19 Core Hits 27 | . 10 9 4 . . 4 Critical Kills 1 | . . . . . . 1 Critical Parts Destroyed 4 | . 1 . . . . 3 Critical Strikes 6 | . 1 . . . . 5 Destroy 1 | . 1 . . . . . Smash 5 | . . . . . . 5 Melee Attacks 33 | . . 3 . . . 30 Impact 33 | . . 3 . . . 30 Slashing . | . . . . . . . Piercing . | . . . . . . . Sneak Attacks . | . . . . . . . Combat Hostiles . | . . . . . . . Follow-up Attacks . | . . . . . . . Damage Inflicted 1968 | . 312 520 301 . . 835 Guns 502 | . 312 190 . . . . Cannons . | . . . . . . . Explosions 798 | . . 295 301 . . 202 Melee 644 | . . 35 . . . 609 Ramming 24 | . . . . . . 24 Kinetic 502 | . 312 190 . . . . Thermal . | . . . . . . . Explosive 798 | . . 295 301 . . 202 Electromagnetic . | . . . . . . . Impact 644 | . . 35 . . . 609 Slashing . | . . . . . . . Piercing . | . . . . . . . Highest Corruption . | . . . . . . . Average Corruption . | . . . . . . . Corruption Purged . | . . . . . . . Corruption Blocked . | . . . . . . . Overload Shots . | . . . . . . . Overflow Damage 262 | . . 88 . . . 174 Projectiles . | . . . . . . . Explosions 113 | . . 73 . . . 40 Melee 149 | . . 15 . . . 134 Knockbacks 1 | . . . . . . 1 Impact 1 | . . . . . . 1 Kinetic . | . . . . . . . Secondary . | . . . . . . . Self-Inflicted Damage 48 | . . 13 . . . 35 Shots 2 | . . 1 . . . 1 Rammed 27 | . . . . . . 27 Targets Rammed 27 | . . . . . . 27 Kicked . | . . . . . . . Crushed . | . . . . . . . Highest Temperature 5 | . 2 5 . . . 3 Average Temperature 2 | . 2 2 . . . 2 Received Heat Transfer 597 | . 96 96 . . . 405 Siege Activations . | . . . . . . . Robots Corrupted . | . . . . . . . Combat Hostiles . | . . . . . . . Parts Fried 4 | . . . . . . 4 Impact Corruptions 8 | . . 1 . . . 7 Robots Melted . | . . . . . . . Combat Hostiles . | . . . . . . . Parts Melted . | . . . . . . . Heat Transferred . | . . . . . . . Parts Sabotaged . | . . . . . . . Parts Stolen . | . . . . . . . Parts Stripped . | . . . . . . . Power Chain Reactions . | . . . . . . . Alert | -11 -10 -9 -9 -9 -8 -8 ------- Run | Yrd Mat Mat Min Exi Min Mat Peak Influence 264 | . 117 264 129 . . 254 Initial 24 | . . 14 24 . . . Average 89 | . 52 131 109 . . 150 Maximum Alert Level 1 | . . 1 . . . 1 Low Security (%) 83 | 100 100 85 100 . 100 48 Level 1 16 | . . 14 . . . 51 Level 2 . | . . . . . . . Level 3 . | . . . . . . . Level 4 . | . . . . . . . Level 5 . | . . . . . . . High Security . | . . . . . . . Max Security . | . . . . . . . Squads Dispatched 4 | . 1 1 . . . 2 Investigation 1 | . . 1 . . . . Extermination . | . . . . . . . Reinforcement 3 | . 1 . . . . 2 Assault . | . . . . . . . Garrison . | . . . . . . . Intercept . | . . . . . . . Searches Triggered . | . . . . . . . Construction Impeded . | . . . . . . . Haulers Reinforced . | . . . . . . . Active Scanning Responses . | . . . . . . . Cargo Convoy Interrupts . | . . . . . . . Stealth | -11 -10 -9 -9 -9 -8 -8 --------- Run | Yrd Mat Mat Min Exi Min Mat Distress Signals 5 | . 3 . . . . 2 Communications Jammed . | . . . . . . . Distress Signals . | . . . . . . . Times Spotted 41 | . 10 8 4 . . 19 Peak Tracking Total 10 | . 4 3 4 . . 10 Tactical Retreats 1 | . 1 . . . . . Traps | -11 -10 -9 -9 -9 -8 -8 ------- Run | Yrd Mat Mat Min Exi Min Mat Traps Triggered . | . . . . . . . Indirectly . | . . . . . . . Trap Hack Attempts . | . . . . . . . Triggered . | . . . . . . . Disarmed . | . . . . . . . Reprogrammed . | . . . . . . . Reused . | . . . . . . . Traps Extracted . | . . . . . . . Installed . | . . . . . . . Triggered . | . . . . . . . Machines | -11 -10 -9 -9 -9 -8 -8 ---------- Run | Yrd Mat Mat Min Exi Min Mat Machines Disabled . | . . . . . . . Max in Single Turn . | . . . . . . . Machines Repaired . | . . . . . . . Machines Dismantled . | . . . . . . . Machines Sabotaged . | . . . . . . . Overloaded Fab Kills . | . . . . . . . Hacking | -11 -10 -9 -9 -9 -8 -8 --------- Run | Yrd Mat Mat Min Exi Min Mat Machines Accessed 9 | . 4 3 . 2 . . Terminals 5 | . 2 3 . . . . Fabricators . | . . . . . . . Repair Stations . | . . . . . . . Recycling Units 2 | . 2 . . . . . Scanalyzers . | . . . . . . . Garrison Access . | . . . . . . . Total Hacks 17 | . 8 6 . 3 . . Successful 9 | . 3 3 . 3 . . Failed 8 | . 5 3 . . . . Catastrophic 1 | . 1 . . . . . Database Lockouts . | . . . . . . . Manual 5 | . 3 . . 2 . . Terminals 10 | . 4 6 . . . . Fabricators . | . . . . . . . Repair Stations . | . . . . . . . Recycling Units 4 | . 4 . . . . . Scanalyzers . | . . . . . . . Garrison Access . | . . . . . . . Terminal Hacks 7 | . 1 3 . 3 . . Record 3 | . 1 . . 2 . . Emergency Access Points 1 | . . 1 . . . . Locate Traps 1 | . . 1 . . . . Zone Layout 1 | . . 1 . . . . Derelict Proto ID Bank 1 | . . . . 1 . . Fabricator Hacks . | . . . . . . . Repair Station Hacks . | . . . . . . . Recycling Unit Hacks 2 | . 2 . . . . . Retrieve Matter 1 | . 1 . . . . . Retrieve Components 1 | . 1 . . . . . Scanalyzer . | . . . . . . . Garrison Access Hacks . | . . . . . . . Unauthorized Hacks . | . . . . . . . Terminals . | . . . . . . . Fabricators . | . . . . . . . Repair Stations . | . . . . . . . Recycling Units . | . . . . . . . Scanalyzers . | . . . . . . . Garrison Access . | . . . . . . . Data Cores Recovered . | . . . . . . . Used . | . . . . . . . Hacking Detections 6 | . 3 3 . . . . Full Trace Events 1 | . . 1 . . . . Feedback Events . | . . . . . . . Feedback Blocked . | . . . . . . . Robot Schematics Acquired . | . . . . . . . Robots Built . | . . . . . . . Authchips . | . . . . . . . Time . | . . . . . . . Total Robot Build Rating . | . . . . . . . Part Schematics Acquired . | . . . . . . . Parts Built . | . . . . . . . Authchips . | . . . . . . . Time . | . . . . . . . Total Part Build Rating . | . . . . . . . Parts Repaired . | . . . . . . . Time . | . . . . . . . Parts Recycled . | . . . . . . . Recycled Matter . | . . . . . . . Retrieved Matter . | . . . . . . . Retrieved Components 2 | . 2 . . . . . Parts Scanalyzed . | . . . . . . . Part Schematics Acquired . | . . . . . . . Parts Damaged . | . . . . . . . Bothacking | -11 -10 -9 -9 -9 -8 -8 ------------ Run | Yrd Mat Mat Min Exi Min Mat Used RIF Installer . | . . . . . . . Robots Hacked . | . . . . . . . Non-combat . | . . . . . . . Combat . | . . . . . . . Robot Hacks Applied . | . . . . . . . Relay Couplers Released . | . . . . . . . Fabnet Peak Effective % . | . . . . . . . Robots Rewired . | . . . . . . . Allies Hacked . | . . . . . . . Hacks Repelled . | . . . . . . . Allies | -11 -10 -9 -9 -9 -8 -8 -------- Run | Yrd Mat Mat Min Exi Min Mat Total Allies . | . . . . . . . Largest Group . | . . . . . . . Highest-Rated Group . | . . . . . . . Highest-Rated Ally . | . . . . . . . Total Orders . | . . . . . . . Ally Attacks . | . . . . . . . Total Damage . | . . . . . . . Kills . | . . . . . . . Allies Corrupted . | . . . . . . . Allies Melted . | . . . . . . . Intel | -11 -10 -9 -9 -9 -8 -8 ------- Run | Yrd Mat Mat Min Exi Min Mat Robot Analysis Total . | . . . . . . . Derelict Logs Recovered . | . . . . . . . Drone Launches . | . . . . . . . Drone Recoveries . | . . . . . . . Exploration | -11 -10 -9 -9 -9 -8 -8 ------------- Run | Yrd Mat Mat Min Exi Min Mat Turns Passed 2451 | 75 501 416 21 816 200 422 Spaces Moved 1330 | 41 273 216 10 506 126 158 Core 4 | 1 . . . . . 3 Treads 1127 | 24 90 216 10 506 126 155 Legs 199 | 16 183 . . . . . Wheels . | . . . . . . . Hover . | . . . . . . . Flight . | . . . . . . . Fastest Speed 50 | 50 120 160 160 160 160 100 Average Speed 158 | 141 152 160 160 160 160 165 Slowest Speed 320 | 160 320 160 160 160 160 170 Overloaded Moves . | . . . . . . . Propulsion Burnouts . | . . . . . . . Robots Hopped . | . . . . . . . Cave-ins Triggered . | . . . . . . . Exploration Rate (%) 32 | 3 46 19 3 92 47 18 Regions Visited 6 Branch Regions 3 Pre-discovered Areas 1 | . . . . 1 . . Known Exits Taken 4 | . . 1 1 1 1 . Unknown Exits Taken 2 | 1 1 . . . . . Scrap Searched . | . . . . . . . Spaces Dug 1 | . . . . . . 1 Terrain Destroyed 68 | . . 22 23 . . 23 Melee 1 | . . . . . . 1 Projectile . | . . . . . . . AOE 67 | . . 22 23 . . 22 Terrain Rammed . | . . . . . . . Walls Destroyed . | . . . . . . . Machines Disabled . | . . . . . . . Actions | -11 -10 -9 -9 -9 -8 -8 --------- Run | Yrd Mat Mat Min Exi Min Mat Total 1527 | 55 321 261 13 513 125 239 Wait 5 | . . 5 . . . . Move 1324 | 40 272 215 9 505 125 158 Hop . | . . . . . . . Pick Up 35 | 5 14 6 1 1 . 8 Fast Attach 11 | 6 2 3 . . . . Attach 10 | . . 2 1 . . 7 Detach 1 | . . 1 . . . . Swap 20 | 2 5 5 . 3 . 5 Drop 26 | 2 9 9 . 4 . 2 Fire 35 | . 19 12 2 . . 2 Melee 33 | . . 3 . . . 30 Ram 3 | . . . . . . 3 Kick . | . . . . . . . Crush 24 | . . . . . . 24 Escape Stasis . | . . . . . . . Rewire . | . . . . . . . Trap . | . . . . . . . Miscellaneous . | . . . . . . . Route ------- -11/Scrapyard -10/Materials -9/Materials (discovered 2 exits: *Min / *Sto) -9/Mines -9/Exiles (discovered 2 exits: *Min x2) -8/Mines -8/Materials History --------- Turn | Location | Event 8 | -11/Scrapyard | Discovered new exit (range 16) 76 | -11/Scrapyard | Entered Materials 312 | -10/Materials | Build established: Mutant 518 | -10/Materials | Discovered new exit (range 14) 577 | -10/Materials | Entered another Materials area 577 | -9/Materials | Evolved 2 slots: Propulsion x2 765 | -9/Materials | Discovered new exit (range 14) 807 | -9/Materials | Discovered new exit (range 11) 951 | -9/Materials | Identified exit to Storage 991 | -9/Materials | Identified exit to Mines 993 | -9/Materials | Entered Mines 999 | -9/Mines | Discovered new exit (range 7) 1012 | -9/Mines | Identified exit to Exiles 1014 | -9/Mines | Entered Exiles 1035 | -9/Exiles | Discovered new exit (range 15) 1053 | -9/Exiles | Met 8R-AWN 1083 | -9/Exiles | Met EX-HEX 1144 | -9/Exiles | Met EX-DEC 1180 | -9/Exiles | Visited The Gauntlet 1365 | -9/Exiles | Learned location of Zion (-7) 1434 | -9/Exiles | Discovered new exit (range 10) 1445 | -9/Exiles | Identified exit to Mines 1566 | -9/Exiles | Met EX-BIN 1584 | -9/Exiles | Aligned with FarCom system 1586 | -9/Exiles | Given EX-Vault access code 1627 | -9/Exiles | Opened EX-Vault 1645 | -9/Exiles | Found Lightpack 2.0 1699 | -9/Exiles | Warned to stay clear of 0b10 Research branches 1830 | -9/Exiles | Left Exiles lab with Lightpack 2.0 1830 | -9/Exiles | Entered Mines 1932 | -8/Mines | Build established: Scavenger-Mutant 1974 | -8/Mines | Discovered new exit (range 9) 1986 | -8/Mines | Identified exit to Materials 2030 | -8/Mines | Entered Materials 2030 | -8/Materials | Evolved 2 slots: Utility x2 2341 | -8/Materials | Build established: Hauler-Mutant 2418 | -8/Materials | Core integrity fell below 50% 2438 | -8/Materials | Core integrity fell below 20% 2452 | -8/Materials | Destroyed by Y-45 Defender with Beam Rifle Last Messages --------------- 02438_ Lgt. Treads destroyed. 02438_ M-13 Machinist destroyed. 02439_ Slammed into H-61 Shepherd. 02442_ H-61 Shepherd IFF system glitched. 02443_ Acquired 2 matter. 02443_ Y-45 Defender suffers critical hit (Burn). 02444_ U-05 Engineer builds a Wall. 02444_ Slammed into H-61 Shepherd. 02444_ K-01 Serf collects debris. 02445_ Acquired 3 matter. 02445_ Lgt. Treads destroyed. 02445_ Slammed into H-61 Shepherd. 02448_ H-61 Shepherd IFF system glitched. 02448_ Slug penetrates L-31 Rogue. 02449_ Slammed into H-61 Shepherd. 02449_ K-01 Serf collects debris. 02450_ Slammed into H-61 Shepherd. 02451_ U-05 Engineer builds a Wall. 02452_ Imp. Treads destroyed. Map ----- +----------------------------------------------------+ | ?????????????????????????????????????????????????? | | ?????????????????????????????????????????????????? | | ?????????????????????????????????????????????????? | | ?????????????????????????????????????????????????? | | ?????????????????????????????????????????????????? | | ?????????????????????????????????????????????????? | | ?????????????????????????????????????????????????? | | ?????????????????????????????????????????????????? | | ?????????????????????????????????????????????????? | | ??????????????????????g??????????????????????????? | | ?????????????????????????g ?????????????????????? | | ????????????????????????? !!????????????????????? | | ????????????????????????? !!????????????????????? | | ##########??????????????? !?????????????????????? | | ! #??????????????? ?????????????????????? | | ! #??????????????? ?????????????????????? | | ! #??????????????? ?????????????????????? | | """ #??????????????? ?????????????????????? | | """ #???????????????# #?????w???????????????? | | """ #???????????????# #?????????????????????? | | #???????????????# #?????????????????????? | | #########??????## #?????????????????????? | | #####+#### = #?????### ###???????????????????? | | # ####### %%%#???????????????????? | | # % k =g#???????????????????? | | # % %= H@Y%%#???????????????????? | | # [ % %%glukg##??????????????????? | | # = % ####### t u##??????????????????? | | # ##"# % #??# ####w###???????????????????? | | # ! #??#########??##?? =#??????????????????? | | # #????????????????# #??????????????????? | | # #????????????????# #??????????????????? | | # #????????????????# """ #??????????????????? | | # #????????????????# """ #??????????????????? | | + #????????????????# """ #??????????????????? | | # #????????????????########??????????????????? | | + #??????????????????????????????????????????? | | ### ###??????????????????????????????????????????? | | #?# #????????????????????????????????????????????? | | #?# #????????????????????????????????????????????? | | #?#^#????????????????????????????????????????????? | | #?#^#????????????????????????????????????????????? | | ??# #????????????????????????????????????????????? | | ??# #????????????????????????????????????????????? | | ??# ????????????????????????????????????????????? | | ??? ????????????????????????????????????????????? | | ??? ????????????????????????????????????????????? | | ??? ????????????????????????????????????????????? | | ??? ????????????????????????????????????????????? | | ??? ????????????????????????????????????????????? | +----------------------------------------------------+ Best States ------------- Heat Dissipation 31 Energy Generation 14 Energy Capacity 265 Matter Stores 300 Matter Capacity 300 Sight Range 16 Robot Scan Range 14 Terrain Scan Density 10 ECM Strength 1 Evasion (%) 55 Recoil Reduction 4 Item Schematics ----------------- None Robot Schematics ------------------ None Fabricated ------------ Nothing Alien Tech Used ----------------- None Achievements -------------- None Challenges ------------ None Game ------ Seed ThermoelectricDeepSource Manual? 0 Play Time 00:27:06 Cumulative 12.7 hours Start 2024.04.16 @ 16:52:47 End 2024.04.16 @ 19:04:59 Sessions 3 Manual Loads 0 Difficulty Rogue Special Mode None Game No. 23 Rogue 23 Adventurer 0 Explorer 0 Win Type - Total 0 Types 0/0/0/0/0/0/0/0/0 Lore% 17 Gallery% 17 Achievement% 13 Wizard Run 0 Options --------- Layout 1 ASCII 0 Keyboard 0 Movement Arrows Keybinds 0 Fullscreen 1 Font 24/Smallcaps Map View 50x35 Zoom Use 0% Tactical HUD 1 Map Filters NONE Filters NONE Steam 1 RUN: bae5788e-c14b-4ece-abbd-259cc32180c8